[Event "Chess sin Fronteras-IM 2025"]
[Site "San Jose"]
[Date "2025.02.15"]
[Round "3.1"]
[White "Deng, Henry"]
[Black "Martinez Romero, Martin"]
[Result "0-1"]
[Annotator "RC"]
[ECO "B23"]
[WhiteElo "2321"]
[BlackElo "2393"]
[PlyCount "106"]
[EventDate "2025.02.13"]
[EventType "tourn"]
[EventCountry "USA"]
[SourceTitle "playchess.com"]
[Source "ChessBase"]
[SourceQuality "1"]
[TimeControl "5400+30"]

1. e4 {[%emt 0:00:02]} c5 {[%emt 0:00:03]} 2. Nc3 {[%emt 0:00:27]} d6 {[%emt 0:00:06]} 3. f4 {[%emt 0:00:11]} g6 {[%emt 0:00:04]} 4. Nf3 {[%emt 0:00:02]} Bg7 {[%emt 0:00:08]} 5. Bb5+ {[%emt 0:00:03]} Bd7 {[%emt 0:00:08]} 6. Bc4 {[%emt 0:00:03]} e6 {[%emt 0:00:19]} 7. d4 {[%emt 0:00:11]} cxd4 {[%emt 0:00:04]} 8. Nxd4 {[%emt 0:00:02]} Nf6 {[%emt 0:00:15]} 9. Ndb5 {[%emt 0:02:57]} Bxb5 {[%emt 0:00:08]} 10. Bxb5+ {[%emt 0:00:09]} Nc6 {[%emt 0:00:08]} 11. Be3 {[%emt 0:02:19]} O-O {[%emt 0:00:14]} 12. Qf3 {[%emt 0:02:35]} Rc8 {[%emt 0:06:21]} 13. O-O {[%emt 0:06:23]} a6 {[%emt 0:01:15]} 14. Bd3 {[%emt 0:03:13]} Nb4 {[%emt 0:03:39]} 15. Rad1 {[%emt 0:02:13]} Qc7 {[%emt 0:00:03]} 16. a3 {[%emt 0:08:14]} Nxd3 {[%emt 0:00:33]} 17. Rxd3 {[%emt 0:00:05]} Nd7 {[%emt 0:01:29]} 18. Rfd1 {[%emt 0:05:59]} Nb6 {[%emt 0:00:16]} 19. Rxd6 {[%emt 0:02:24]} Nc4 {[%emt 0:01:16]} 20. Rd7 {[%emt 0:00:05]} Qc6 {[%emt 0:00:09]} 21. Ne2 {[%emt 0:07:54]} Nxb2 {[%emt 0:00:51]} 22. R1d2 {[%emt 0:00:55]} Nc4 {[%emt 0:00:31]} 23. R2d3 {[%emt 0:00:41]} Nxe3 {[%emt 0:03:10]} 24. Qxe3 {[%emt 0:01:03]} Qxc2 {[%emt 0:00:06]} 25. Rxb7 {[%emt 0:00:14]} Rfd8 {[%emt 0:00:16]} 26. Rbd7 {[%emt 0:09:43]} Rxd7 {[%emt 0:00:35]} 27. Rxd7 {[%emt 0:00:02]} Bf8 {[%emt 0:00:33]} 28. Qd3 {[%emt 0:01:11]} Qb2 {[%emt 0:03:14]} 29. Kf2 {[%emt 0:05:11]} Qxa3 {[%emt 0:04:00]} 30. Qxa3 {[%emt 0:00:09]} Bxa3 {[%emt 0:00:05]} 31. Kf3 {[%emt 0:00:29]} Ra8 {[%emt 0:02:06]} 32. e5 {[%emt 0:05:28]} a5 {[%emt 0:00:52]} 33. Nc3 {[%emt 0:01:20]} Bb4 {[%emt 0:00:13]} 34. Na4 {[%emt 0:01:17]} Rc8 {[%emt 0:00:46]} 35. Ra7 {[%emt 0:00:50]} Kg7 {[%emt 0:01:01]} 36. Rb7 {[%emt 0:01:14]} Rc1 {[%emt 0:03:10]} 37. Nb6 {[%emt 0:06:31]} Rf1+ {[%emt 0:00:09]} 38. Ke4 {[%emt 0:01:10]} Bd2 {[%emt 0:00:09]} 39. Nd7 {[%emt 0:02:00]} Rxf4+ {[%emt 0:00:14]} 40. Kd3 {[%emt 0:00:01]} Bb4 {[%emt 0:08:07]} 41. Ke3 {[%emt 0:02:24]} Rf1 {[%emt 0:00:24]} 42. Ke2 {[%emt 0:00:51]} Re1+ {[%emt 0:00:28]} 43. Kf2 {[%emt 0:00:03]} Rd1 {[%emt 0:00:11]} 44. Nf6 {[%emt 0:00:32]} Rd8 {[%emt 0:00:15]} 45. Ne4 {[%emt 0:00:49]} h6 {[%emt 0:00:28]} 46. Nf6 {[%emt 0:00:52]} Ra8 {[%emt 0:00:32]} 47. Ke3 {[%emt 0:00:30]} Bc3 {[%emt 0:01:19]} 48. Nd7 {[%emt 0:00:12]} a4 {[%emt 0:00:28]} 49. Nb6 {[%emt 0:00:28]} Ra6 {[%emt 0:00:23]} 50. Nc4 {[%emt 0:00:53]} a3 {[%emt 0:01:02]} 51. Nd6 {[%emt 0:00:10]} a2 {[%emt 0:01:01]} 52. Nxf7 {[%emt 0:00:49]} Bd4+ {[%emt 0:00:32]} 53. Ke4 {[%emt 0:00:28]} Ra7 {[%emt 0:00:10]} 0-1

[Event "Chess sin Fronteras-IM 2025"]
[Site "San Jose"]
[Date "2025.02.15"]
[Round "3.3"]
[White "Sivakumar, Shaashwath"]
[Black "Paredes Lagos, Anthony Javier"]
[Result "1-0"]
[Annotator "RC"]
[ECO "A09"]
[WhiteElo "2273"]
[BlackElo "2338"]
[PlyCount "191"]
[EventDate "2025.02.13"]
[EventType "tourn"]
[EventCountry "USA"]
[SourceTitle "playchess.com"]
[Source "ChessBase"]
[SourceQuality "1"]
[TimeControl "5400+30"]

1. d4 d5 2. c4 dxc4 3. Nf3 Nf6 4. e3 c5 5. Bxc4 cxd4 6. exd4 g6 7. Ne5 e6 8. O-O Bg7 9. Be3 O-O 10. Nc3 Nc6 11. Rc1 Ne7 12. Qf3 Nf5 13. Rfd1 Nxe3 14. fxe3 Qe7 15. Bb3 {[%emt 0:07:30]} Rb8 {[%emt 0:07:30]} 16. Na4 {[%emt 0:00:30]} Nd7 {[%emt 0:00:30]} 17. Ng4 {[%emt 0:00:30]} h5 {[%emt 0:00:30]} 18. Nf2 {[%emt 0:00:30]} Nf6 {[%emt 0:00:30]} 19. Qg3 {[%emt 0:00:30]} Bd7 {[%emt 0:00:30]} 20. Rc7 {[%emt 0:00:30]} Qd8 {[%emt 0:00:30]} 21. Nc5 {[%emt 0:00:30]} h4 {[%emt 0:00:30]} 22. Qf4 {[%emt 0:00:30]} Nh5 {[%emt 0:00:30]} 23. Qd6 {[%emt 0:00:30]} Bc6 {[%emt 0:00:30]} 24. Nfe4 {[%emt 0:00:30]} Rc8 {[%emt 0:00:30]} 25. Nxe6 {[%emt 0:00:30]} Qxd6 {[%emt 0:00:30]} 26. Nxd6 {[%emt 0:00:30]} Rxc7 {[%emt 0:00:30]} 27. Nxc7 {[%emt 0:00:30]} Bh6 {[%emt 0:00:30]} 28. Kf2 {[%emt 0:00:30]} Nf6 {[%emt 0:00:30]} 29. h3 {[%emt 0:00:30]} Ne4+ {[%emt 0:00:30]} 30. Nxe4 {[%emt 0:00:30]} Bxe4 {[%emt 0:00:30]} 31. Bd5 {[%emt 0:00:30]} Rc8 {[%emt 0:00:30]} 32. Bxe4 {[%emt 0:00:30]} Rxc7 {[%emt 0:00:30]} 33. Kf3 {[%emt 0:00:30]} Kf8 {[%emt 0:00:30]} 34. Rd3 {[%emt 0:00:30]} f5 {[%emt 0:00:30]} 35. Bd5 {[%emt 0:00:30]} Rd7 {[%emt 0:00:30]} 36. Be6 {[%emt 0:00:30]} Rd6 {[%emt 0:00:30]} 37. d5 {[%emt 0:00:30]} Bg7 {[%emt 0:00:30]} 38. b3 {[%emt 0:00:30]} Ke7 {[%emt 0:00:30]} 39. Rd2 {[%emt 0:00:30]} Rd8 {[%emt 0:00:30]} 40. Rc2 {[%emt 0:00:30]} Kd6 {[%emt 0:00:30]} 41. Rc4 {[%emt 0:00:30]} Bf6 {[%emt 0:00:30]} 42. Rb4 {[%emt 0:00:30]} Rb8 {[%emt 0:00:30]} 43. a4 {[%emt 0:00:30]} a6 {[%emt 0:00:30]} 44. Rc4 {[%emt 0:00:30]} Bd8 {[%emt 0:00:30]} 45. e4 {[%emt 0:00:30]} fxe4+ {[%emt 0:00:30]} 46. Kxe4 {[%emt 0:00:30]} a5 {[%emt 0:00:30]} 47. Rc3 {[%emt 0:00:30]} Be7 {[%emt 0:00:30]} 48. Bc8 {[%emt 0:00:30]} Bf6 {[%emt 0:00:30]} 49. Rc2 {[%emt 0:00:30]} Bg5 {[%emt 0:00:30]} 50. Rc4 {[%emt 0:00:30]} Bf6 {[%emt 0:00:30]} 51. Be6 {[%emt 0:00:30]} Be7 {[%emt 0:00:30]} 52. Bf7 {[%emt 0:00:30]} g5 {[%emt 0:00:30]} 53. Kf5 {[%emt 0:00:30]} Rf8 {[%emt 0:00:30]} 54. Kg6 {[%emt 0:00:30]} Rb8 {[%emt 0:00:30]} 55. Re4 {[%emt 0:00:30]} Bd8 {[%emt 0:00:30]} 56. Kf5 {[%emt 0:00:30]} Bc7 {[%emt 0:00:30]} 57. Kxg5 {[%emt 0:00:30]} Rf8 {[%emt 0:00:30]} 58. Kf6 {[%emt 0:00:30]} Rb8 {[%emt 0:00:30]} 59. Kg6 {[%emt 0:00:30]} Bd8 {[%emt 0:00:30]} 60. Kf5 {[%emt 0:00:30]} Kd7 {[%emt 0:00:30]} 61. Rc4 {[%emt 0:00:30]} Be7 {[%emt 0:00:30]} 62. Kg6 {[%emt 0:00:30]} b5 {[%emt 0:00:30]} 63. Be6+ {[%emt 0:00:30]} Kd6 {[%emt 0:00:30]} 64. Rc6+ {[%emt 0:00:30]} Ke5 {[%emt 0:00:30]} 65. Ra6 {[%emt 0:00:30]} bxa4 {[%emt 0:00:30]} 66. bxa4 {[%emt 0:00:30]} Bb4 {[%emt 0:00:30]} 67. Ra7 {[%emt 0:00:30]} Be1 {[%emt 0:00:30]} 68. Kf7 {[%emt 0:00:30]} Bb4 {[%emt 0:00:30]} 69. Kg6 {[%emt 0:00:30]} Be1 {[%emt 0:00:30]} 70. Bf7 {[%emt 0:00:30]} Bb4 {[%emt 0:00:30]} 71. Kg5 {[%emt 0:00:30]} Rh8 {[%emt 0:00:30]} 72. Ra6 {[%emt 0:00:30]} Bd2+ {[%emt 0:00:30]} 73. Kg4 {[%emt 0:00:30]} Rf8 {[%emt 0:00:30]} 74. Re6+ {[%emt 0:00:30]} Kd4 {[%emt 0:00:30]} 75. Re7 {[%emt 0:00:30]} Bb4 {[%emt 0:00:30]} 76. Ra7 {[%emt 0:00:30]} Rh8 {[%emt 0:00:30]} 77. Kf5 {[%emt 0:00:30]} Rh6 {[%emt 0:00:30]} 78. Rd7 {[%emt 0:00:30]} Rb6 {[%emt 0:00:30]} 79. Rc7 {[%emt 0:00:30]} Ba3 {[%emt 0:00:30]} 80. Rc6 {[%emt 0:00:30]} Rb2 {[%emt 0:00:30]} 81. d6 {[%emt 0:00:30]} Rf2+ {[%emt 0:00:30]} 82. Ke6 {[%emt 0:00:30]} Re2+ {[%emt 0:00:30]} 83. Kf6 {[%emt 0:00:30]} Rf2+ {[%emt 0:00:30]} 84. Ke6 {[%emt 0:00:30]} Re2+ {[%emt 0:00:30]} 85. Kd7 {[%emt 0:00:30]} Rxg2 {[%emt 0:00:30]} 86. Be6 {[%emt 0:00:30]} Ke5 {[%emt 0:00:30]} 87. Kc7 {[%emt 0:00:30]} Bxd6+ {[%emt 0:00:30]} 88. Rxd6 {[%emt 0:00:30]} Rg6 {[%emt 0:00:30]} 89. Rd5+ {[%emt 0:00:30]} Kxe6 {[%emt 0:00:30]} 90. Rd6+ {[%emt 0:00:30]} Kf5 {[%emt 0:00:30]} 91. Rxg6 {[%emt 0:00:30]} Kxg6 {[%emt 0:00:30]} 92. Kb6 {[%emt 0:00:30]} Kf5 {[%emt 0:00:30]} 93. Kxa5 {[%emt 0:00:30]} Kf4 {[%emt 0:00:30]} 94. Kb4 {[%emt 0:00:30]} Kg3 {[%emt 0:00:30]} 95. a5 {[%emt 0:00:30]} Kxh3 {[%emt 0:00:30]} 96. a6 {[%emt 0:00:30]} 1-0

[Event "Chess sin Fronteras-IM 2025"]
[Site "San Jose"]
[Date "2025.02.15"]
[Round "3.4"]
[White "Liu, Patrick"]
[Black "Yan, Nathan"]
[Result "*"]
[Annotator "RC"]
[ECO "C54"]
[WhiteElo "2159"]
[BlackElo "2152"]
[PlyCount "85"]
[EventDate "2025.02.13"]
[EventType "tourn"]
[EventCountry "USA"]
[SourceTitle "playchess.com"]
[Source "ChessBase"]
[SourceQuality "1"]
[TimeControl "5400+30"]

1. e4 {[%emt 0:00:03]} e5 {[%emt 0:00:03]} 2. Nf3 {[%emt 0:00:09]} Nc6 {[%emt 0:00:12]} 3. Bc4 {[%emt 0:00:08]} Bc5 {[%emt 0:00:21]} 4. O-O {[%emt 0:00:15]} Nf6 {[%emt 0:00:07]} 5. d3 {[%emt 0:00:10]} O-O {[%emt 0:00:16]} 6. h3 {[%emt 0:00:09]} h6 {[%emt 0:00:56]} 7. c3 {[%emt 0:00:26]} d6 {[%emt 0:00:04]} 8. Re1 {[%emt 0:00:41]} a5 {[%emt 0:00:34]} 9. Nbd2 {[%emt 0:00:20]} Be6 {[%emt 0:00:39]} 10. Bb5 {[%emt 0:00:12]} Nd7 {[%emt 0:00:24]} 11. Nf1 {[%emt 0:00:07]} f5 {[%emt 0:02:37]} 12. exf5 {[%emt 0:00:07]} Bxf5 {[%emt 0:00:02]} 13. Ng3 {[%emt 0:00:02]} Bh7 {[%emt 1:30:45]} 14. d4 {[%emt 0:01:40]} exd4 {[%emt 0:01:52]} 15. cxd4 {[%emt 0:01:33]} Bb6 {[%emt 0:00:30]} 16. a3 {[%emt 0:02:01]} Nf6 {[%emt 0:02:06]} 17. Be3 {[%emt 0:00:18]} Ne7 {[%emt 0:05:22]} 18. Bc4+ {[%emt 0:03:58]} Kh8 {[%emt 0:03:12]} 19. Qd2 {[%emt 0:06:16]} d5 {[%emt 0:12:46]} 20. Bd3 {[%emt 0:01:18]} Ne4 {[%emt 0:00:25]} 21. Qc2 {[%emt 0:13:32]} Nxg3 {[%emt 0:06:11]} 22. fxg3 {[%emt 0:03:16]} Nf5 {[%emt 0:06:32]} 23. Bf2 {[%emt 0:23:03]} Qf6 {[%emt 0:03:25]} 24. Kh1 {[%emt 0:03:06]} h5 {[%emt 0:18:49]} 25. Re5 {[%emt 0:03:01]} Rae8 {[%emt 0:08:46]} 26. Rxd5 {[%emt 0:09:44]} c6 {[%emt 0:03:00]} 27. Rd7 {[%emt 0:04:00]} Ba7 {[%emt 0:08:02]} 28. Rxb7 {[%emt 0:11:32]} Bb8 {[%emt 0:00:12]} 29. Kg1 {[%emt 0:01:11]} Bxg3 {[%emt 0:05:39]} 30. Bxg3 {[%emt 0:03:23]} Nxd4 {[%emt 0:02:15]} 31. Nxd4 {[%emt 0:03:24]} Qxd4+ {[%emt 0:00:11]} 32. Bf2 {[%emt 0:00:01]} Qxd3 {[%emt 0:01:01]} 33. Qxd3 {[%emt 0:00:06]} Bxd3 {[%emt 0:00:01]} 34. Bd4 {[%emt 0:00:18]} Rg8 {[%emt 0:01:19]} 35. Rd1 {[%emt 0:00:43]} Be4 {[%emt 0:02:12]} 36. Ra7 {[%emt 0:00:55]} Bd5 {[%emt 0:00:19]} 37. Rd2 {[%emt 0:01:06]} Ra8 {[%emt 0:02:35]} 38. Bxg7+ {[%emt 0:01:33]} Kh7 {[%emt 0:00:00]} 39. Rxa8 {[%emt 0:00:10]} Rxa8 {[%emt 0:00:01]} 40. Bc3 {[%emt 0:00:08]} a4 {[%emt 0:00:31]} 41. Kh2 {[%emt 0:02:35]} Re8 {[%emt 0:00:14]} 42. Rf2 {[%emt 0:01:24]} Re3 {[%emt 0:01:12]} 43. Bd2 {[%emt 0:02:06]} *

[Event "Chess sin Fronteras-IM 2025"]
[Site "San Jose"]
[Date "2025.02.15"]
[Round "3.6"]
[White "Jimenez Garcia, Emmanuel"]
[Black "Perdomo, Leandro"]
[Result "1/2-1/2"]
[Annotator "RC"]
[ECO "E90"]
[WhiteElo "2364"]
[BlackElo "2364"]
[PlyCount "43"]
[EventDate "2025.02.13"]
[EventType "tourn"]
[EventCountry "USA"]
[SourceTitle "playchess.com"]
[Source "ChessBase"]
[SourceQuality "1"]
[TimeControl "5400+30"]

1. Nf3 {[%emt 0:00:12]} Nf6 {[%emt 0:00:03]} 2. c4 {[%emt 0:00:24]} g6 {[%emt 0:00:02]} 3. Nc3 {[%emt 0:00:08]} Bg7 {[%emt 0:00:02]} 4. e4 {[%emt 0:00:07]} d6 {[%emt 0:00:02]} 5. d4 {[%emt 0:00:05]} O-O {[%emt 0:00:04]} 6. h3 {[%emt 0:00:08]} Nc6 {[%emt 0:00:50]} 7. d5 {[%emt 0:00:06]} Nb4 {[%emt 0:00:21]} 8. a3 {[%emt 0:02:51]} Na6 {[%emt 0:00:03]} 9. Be3 {[%emt 0:03:59]} e6 {[%emt 0:00:53]} 10. b4 {[%emt 0:04:26]} Nxd5 {[%emt 0:05:58]} 11. Nxd5 {[%emt 0:00:41]} exd5 {[%emt 0:00:14]} 12. cxd5 {[%emt 0:07:42]} Bc3+ {[%emt 0:35:22]} 13. Bd2 {[%emt 0:03:07]} Bxa1 {[%emt 0:06:03]} 14. Qxa1 {[%emt 0:00:15]} f6 {[%emt 0:10:10]} 15. Bd3 {[%emt 0:05:58]} c5 {[%emt 0:12:20]} 16. dxc6 {[%emt 0:02:51]} bxc6 {[%emt 0:02:02]} 17. O-O {[%emt 0:00:38]} Nc7 {[%emt 0:01:22]} 18. Rc1 {[%emt 0:00:38]} Bb7 {[%emt 0:03:52]} 19. Nd4 {[%emt 0:03:17]} Qd7 {[%emt 0:00:28]} 20. Qc3 {[%emt 0:08:27]} Nb5 {[%emt 0:02:17]} 21. Qb3+ {[%emt 0:06:41]} Kh8 {[%emt 0:00:38]} 22. Nf3 {[%emt 0:00:30]} 1/2-1/2

[Event "Chess sin Fronteras-IM 2025"]
[Site "San Jose"]
[Date "2025.02.15"]
[Round "4.1"]
[White "Martinez Romero, Martin"]
[Black "Perdomo, Leandro"]
[Result "1/2-1/2"]
[Annotator "ChessBase"]
[ECO "E92"]
[WhiteElo "2393"]
[BlackElo "2364"]
[PlyCount "41"]
[EventDate "2025.02.13"]
[EventType "tourn"]
[EventCountry "USA"]
[SourceTitle "playchess.com"]
[Source "ChessBase"]
[SourceQuality "1"]
[TimeControl "5400+30"]

1. d4 {[%emt 0:09:59]} Nf6 {[%emt 0:00:02]} 2. c4 {[%emt 0:00:04]} g6 {[%emt 0:00:03]} 3. Nc3 {[%emt 0:00:05]} Bg7 {[%emt 0:00:02]} 4. e4 {[%emt 0:00:06]} d6 {[%emt 0:00:04]} 5. Nf3 {[%emt 0:00:04]} O-O {[%emt 0:00:05]} 6. Be2 {[%emt 0:00:03]} e5 {[%emt 0:00:16]} 7. Be3 {[%emt 0:00:04]} exd4 {[%emt 0:00:31]} 8. Nxd4 {[%emt 0:00:07]} Re8 {[%emt 0:00:03]} 9. f3 {[%emt 0:00:07]} c6 {[%emt 0:00:07]} 10. Bf2 {[%emt 0:00:04]} d5 {[%emt 0:00:14]} 11. exd5 {[%emt 0:00:05]} cxd5 {[%emt 0:00:03]} 12. O-O {[%emt 0:00:06]} Nc6 {[%emt 0:00:08]} 13. c5 {[%emt 0:00:20]} Nh5 {[%emt 0:00:17]} 14. Qd2 {[%emt 0:00:33]} Be5 {[%emt 0:00:34]} 15. g3 {[%emt 0:00:57]} Ng7 {[%emt 0:00:05]} 16. Rfe1 {[%emt 0:07:04]} Nf5 {[%emt 0:34:13]} 17. Nc2 {[%emt 0:08:46]} d4 {[%emt 0:13:36]} 18. Ne4 {[%emt 0:00:31]} Be6 {[%emt 0:00:39]} 19. Bd3 {[%emt 0:00:23]} Bg7 {[%emt 0:09:12]} 20. Bb5 {[%emt 0:16:37]} Ne5 {[%emt 0:24:41]} 21. Kg2 {[%emt 0:54:55]} 1/2-1/2

[Event "Chess sin Fronteras-IM 2025"]
[Site "San Jose"]
[Date "2025.02.15"]
[Round "4.2"]
[White "Yan, Nathan"]
[Black "Jimenez Garcia, Emmanuel"]
[Result "0-1"]
[Annotator "RC"]
[ECO "B12"]
[WhiteElo "2152"]
[BlackElo "2364"]
[PlyCount "60"]
[EventDate "2025.02.13"]
[EventType "tourn"]
[EventCountry "USA"]
[SourceTitle "playchess.com"]
[Source "ChessBase"]
[SourceQuality "1"]
[TimeControl "5400+30"]

1. e4 {[%emt 0:01:49]} c6 {[%emt 0:00:21]} 2. d4 {[%emt 0:00:12]} d5 {[%emt 0:00:07]} 3. e5 {[%emt 0:01:09]} Bf5 {[%emt 0:00:20]} 4. Nf3 {[%emt 0:00:06]} e6 {[%emt 0:00:30]} 5. Be2 {[%emt 0:00:09]} Ne7 {[%emt 0:03:56]} 6. Nbd2 {[%emt 0:01:00]} Nd7 {[%emt 0:08:42]} 7. c4 {[%emt 0:01:10]} dxc4 {[%emt 0:04:01]} 8. Nxc4 {[%emt 0:01:03]} Nd5 {[%emt 0:00:29]} 9. O-O {[%emt 0:00:22]} N7b6 {[%emt 0:01:22]} 10. a4 {[%emt 0:10:44]} Nxc4 {[%emt 0:02:59]} 11. Bxc4 {[%emt 0:00:02]} Be7 {[%emt 0:00:29]} 12. Qe2 {[%emt 0:01:10]} O-O {[%emt 0:00:29]} 13. Rd1 {[%emt 0:00:44]} a5 {[%emt 0:06:26]} 14. Bd2 {[%emt 0:03:15]} Qb6 {[%emt 0:01:29]} 15. Bd3 {[%emt 0:22:50]} Bg6 {[%emt 0:02:50]} 16. Bxg6 {[%emt 0:01:23]} fxg6 {[%emt 0:00:10]} 17. Be3 {[%emt 0:05:55]} Qa6 {[%emt 0:07:21]} 18. Qxa6 {[%emt 0:07:09]} Rxa6 {[%emt 0:00:10]} 19. Nd2 {[%emt 0:00:15]} Rfa8 {[%emt 0:03:07]} 20. Ne4 {[%emt 0:02:30]} Rb6 {[%emt 0:01:34]} 21. Rd2 {[%emt 0:03:39]} Rb3 {[%emt 0:00:15]} 22. Bg5 {[%emt 0:02:21]} Bf8 {[%emt 0:00:53]} 23. Nd6 {[%emt 0:09:40]} h6 {[%emt 0:00:26]} 24. Bh4 {[%emt 0:00:21]} Rb4 {[%emt 0:06:42]} 25. h3 {[%emt 0:05:36]} g5 {[%emt 0:04:22]} 26. Bg3 {[%emt 0:00:00]} Rd8 {[%emt 0:01:40]} 27. Rc1 {[%emt 0:07:59]} Bxd6 {[%emt 0:08:13]} 28. exd6 Nf4 {[%emt 0:00:12]} 29. b3 {[%emt 0:03:10]} Rxd6 {[%emt 0:00:20]} 30. Rc5 {[%emt 0:00:10]} b6 {[%emt 0:00:42]} 0-1

[Event "Chess sin Fronteras-IM 2025"]
[Site "San Jose"]
[Date "2025.02.15"]
[Round "4.3"]
[White "Paredes Lagos, Anthony Javier"]
[Black "Liu, Patrick"]
[Result "1/2-1/2"]
[Annotator "ChessBase"]
[ECO "B12"]
[WhiteElo "2338"]
[BlackElo "2159"]
[PlyCount "41"]
[EventDate "2025.02.13"]
[EventType "tourn"]
[EventCountry "USA"]
[SourceTitle "playchess.com"]
[Source "ChessBase"]
[SourceQuality "1"]
[TimeControl "5400+30"]

1. e4 {[%emt 0:00:31]} c6 {[%emt 0:00:04]} 2. d4 {[%emt 0:00:22]} d5 {[%emt 0:00:10]} 3. e5 {[%emt 0:00:03]} c5 {[%emt 0:00:12]} 4. dxc5 {[%emt 0:00:14]} e6 {[%emt 1:32:04]} 5. b4 {[%emt 0:00:51]} a5 {[%emt 0:00:00]} 6. c3 {[%emt 0:00:09]} axb4 {[%emt 0:00:00]} 7. cxb4 {[%emt 0:00:05]} b6 {[%emt 0:00:00]} 8. Be3 {[%emt 0:06:15]} bxc5 {[%emt 0:00:00]} 9. bxc5 {[%emt 0:00:04]} Nd7 {[%emt 0:00:00]} 10. Nf3 {[%emt 0:00:29]} Bxc5 {[%emt 0:00:00]} 11. Bxc5 {[%emt 0:00:13]} Nxc5 {[%emt 0:00:00]} 12. Qc2 {[%emt 0:02:33]} Qa5+ {[%emt 0:00:00]} 13. Nbd2 {[%emt 0:00:29]} Bd7 {[%emt 0:00:00]} 14. Rc1 {[%emt 0:02:44]} Rc8 {[%emt 0:00:00]} 15. Qb1 {[%emt 0:00:07]} Ne7 {[%emt 0:00:00]} 16. Be2 {[%emt 0:00:02]} O-O {[%emt 0:00:00]} 17. O-O {[%emt 0:00:05]} Rb8 {[%emt 0:00:00]} 18. Qa1 {[%emt 0:00:44]} Rfc8 {[%emt 0:00:00]} 19. Rc3 {[%emt 0:01:05]} Na4 {[%emt 0:00:00]} 20. Rxc8+ {[%emt 0:00:14]} Rxc8 {[%emt 0:00:00]} 21. Nb3 {[%emt 0:00:04]} 1/2-1/2

[Event "Chess sin Fronteras-IM 2025"]
[Site "San Jose"]
[Date "2025.02.15"]
[Round "4.4"]
[White "Guo, Andrew"]
[Black "Sivakumar, Shaashwath"]
[Result "1/2-1/2"]
[Annotator "RC"]
[ECO "D11"]
[WhiteElo "2226"]
[BlackElo "2273"]
[PlyCount "101"]
[EventDate "2025.02.13"]
[EventType "tourn"]
[EventCountry "USA"]
[SourceTitle "playchess.com"]
[Source "ChessBase"]
[SourceQuality "1"]
[TimeControl "5400+30"]

1. d4 {[%emt 0:02:21]} d5 {[%emt 0:08:06]} 2. c4 {[%emt 0:00:16]} c6 {[%emt 0:00:04]} 3. Nf3 {[%emt 0:00:03]} Nf6 {[%emt 0:00:04]} 4. Nbd2 {[%emt 0:00:04]} Bf5 {[%emt 0:00:03]} 5. Nh4 {[%emt 0:00:16]} Be6 {[%emt 0:00:09]} 6. e3 {[%emt 0:00:42]} g6 {[%emt 0:00:12]} 7. Nhf3 {[%emt 0:02:22]} Bg7 {[%emt 0:00:15]} 8. Be2 {[%emt 0:02:17]} O-O {[%emt 0:05:41]} 9. O-O {[%emt 0:00:09]} Bg4 {[%emt 0:00:25]} 10. b3 {[%emt 0:00:43]} c5 {[%emt 0:10:16]} 11. Bb2 {[%emt 0:02:18]} cxd4 {[%emt 0:08:52]} 12. Nxd4 {[%emt 0:02:14]} Bxe2 {[%emt 0:01:25]} 13. Qxe2 {[%emt 0:00:05]} e5 {[%emt 0:00:39]} 14. N4f3 {[%emt 0:00:37]} e4 {[%emt 0:00:06]} 15. Nd4 {[%emt 0:00:24]} Qe7 {[%emt 0:00:57]} 16. Nb5 {[%emt 0:03:08]} Nc6 {[%emt 0:04:24]} 17. Rad1 {[%emt 0:06:07]} Rfd8 {[%emt 0:09:49]} 18. Ba3 {[%emt 0:04:40]} Qe5 {[%emt 0:02:26]} 19. cxd5 {[%emt 0:02:46]} Nxd5 {[%emt 0:03:20]} 20. Nc4 {[%emt 0:03:19]} Qe6 {[%emt 0:05:32]} 21. Bb2 {[%emt 0:02:55]} Bxb2 22. Qxb2 {[%emt 0:00:19]} Ncb4 {[%emt 0:05:59]} 23. Nd4 {[%emt 0:03:06]} Qe8 {[%emt 0:05:58]} 24. a4 {[%emt 0:03:10]} b6 {[%emt 0:01:02]} 25. Qd2 {[%emt 0:02:55]} Rac8 {[%emt 0:01:04]} 26. f3 {[%emt 0:01:37]} exf3 {[%emt 0:02:05]} 27. Rxf3 {[%emt 0:00:50]} Qe7 {[%emt 0:01:05]} 28. Qb2 {[%emt 0:02:27]} f6 {[%emt 0:01:03]} 29. Nb5 {[%emt 0:03:01]} a6 {[%emt 0:01:30]} 30. Nbd6 {[%emt 0:07:44]} Rxd6 {[%emt 0:03:06]} 31. Nxd6 {[%emt 0:00:37]} Qxd6 {[%emt 0:00:03]} 32. e4 {[%emt 0:00:06]} Qc5+ {[%emt 0:00:26]} 33. Kh1 {[%emt 0:00:23]} Nc3 {[%emt 0:01:02]} 34. Rc1 {[%emt 0:00:30]} Nba2 {[%emt 0:00:04]} 35. Rcf1 {[%emt 0:00:56]} Rc6 {[%emt 0:00:09]} 36. Rd3 {[%emt 0:13:24]} Rd6 {[%emt 0:05:42]} 37. Rxd6 {[%emt 0:02:55]} Qxd6 {[%emt 0:00:09]} 38. h3 {[%emt 0:01:18]} Qd3 {[%emt 0:03:11]} 39. Ra1 {[%emt 0:02:16]} Nb4 {[%emt 0:02:54]} 40. Qf2 {[%emt 0:00:17]} Qd6 {[%emt 0:00:10]} 41. Qe3 {[%emt 0:00:45]} Qe5 {[%emt 0:02:57]} 42. Qxb6 {[%emt 0:00:43]} Nxe4 {[%emt 0:00:41]} 43. Rd1 {[%emt 0:00:11]} Qf4 {[%emt 0:04:55]} 44. Kg1 {[%emt 0:03:30]} Nc2 {[%emt 0:00:09]} 45. Rf1 {[%emt 0:00:46]} Qe5 {[%emt 0:00:17]} 46. Qxa6 {[%emt 0:01:34]} Qd4+ {[%emt 0:00:49]} 47. Kh2 {[%emt 0:00:34]} Qe5+ {[%emt 0:00:17]} 48. Kg1 {[%emt 0:00:06]} Qd4+ {[%emt 0:01:05]} 49. Kh2 {[%emt 0:00:11]} Ne3 {[%emt 0:00:34]} 50. Qe6+ {[%emt 0:00:37]} Kg7 {[%emt 0:00:06]} 51. Rf4 {[%emt 0:00:10]} 1/2-1/2